Workbook

Sheet ReadMe
A1: March.4.2013_Model
A2: Abbreviations | B2: USGS, U.S. Geological Survey; ID, identifier; TP, total phosphorus; No., number; SW, surface water; RM, river mile; GW, groundwater; Q, discharge; WWTP, wastewater treatment plant; IDWR, Idaho Department of Water Resources; LT-MDL, long-term method detection limit; RL, reporting level; MRL, method reporting level; ft3/s, cubic feet per second; mg/L, milligrams per liter; lbs/d, pounds per day; kg/d, kilograms per day.
A3: Explanation | B3: Refer to the methods section of the report for a full explanation of computations used in the model. Variables explained in the methods section are provided at the top of each column where they are relevant. The equation number in the report that describes a variable is also referenced. Bold, italic sites are main-stem Boise River sites. Bold green sites are sampled returns. Column B is hidden and shows site names. Green-filled column headings indicate measured data. Yellow-filled column headings indicate measured and estimated or computed information. Light blue highlighted cells are groundwater calculations. Light orange cells show results for the measured mass balance model. Light red cells show results for the predictive mass balance model. Yellow cells in the assumed groundwater TP columns are input data for assumed groundwater TP concentrations. Dark blue headings indicate that the user can change inputs to see the resulting scenario in the predictive mass balance model. See comments in specific cells for more detailed information.
A4: Predictive Model Scenarios | B4: Use the password "model" to unlock cells described in this section. To run a scenario using the predictive model, set the assumed groundwater concentration below RM 28.8 in cell O39. Paste the selected groundwater assumptions as values into the "Assumed GW TP Dial" column M. Change desired concentrations in blue- and purple-highlighted cells in the "SW TP Concentration Dial" column. Purple-highlighted cells represent point sources and blue-highlighted cells represent nonpoint sources. View results on the "Concentration Interactive" and "Load Interactive" worksheets. To revert SW TP concentrations back to their measured values, press the "Revert" button. If the user would prefer load output in kg/d, change the conversion factor to 2.445 in the "Conversion Factor" cell T2.
A5: North Channel
A6: Explanation | B6: Abbreviations are the same as in the March.4.2013_Model worksheet. This worksheet shows model calculations in the North Channel. No user inputs are enabled in this worksheet.
A7: Unmeasured_Gains_Losses
A8: Explanation | B8: Abbreviations are the same as in the March.4.2013_Model worksheet. Variables as well as the equation in which they are defined in the report are provided at column headings. The variables computed in this worksheet are used to interpolate groundwater and TP gains throughout the modeling reach.
A9: Measured_Main_Stem_Data
A10: Explanation | B10: Abbreviations are the same as in the March.4.2013_Model worksheet. This worksheet shows calculations measured main-stem TP concentrations, discharges, and instantaneous loads and is used to plot those measured values on various charts. It also updates a comparison chart to view predictive versus measured model output. Mm, Cp, and Cm stand for measured model loads, predictive model concentrations, and measured model concentrations, respectively.
A11: Concentration Interactive, Load Interactive, and Discharge Calibration Plot
A12: Explanation | B12: Abbreviations are the same as in the March.4.2013_Model worksheet. These worksheets show model results. The Concentration Interactive worksheet shows measured model and predictive model TP concentrations. It will also show predictive model concentrations when a scenario is run on the predictive model. The measured model is static on this worksheet. The Load Interactive worksheet shows measured model and predictive model TP loads. It will also show predictive model loads when a scenario is run on the predictive model. The measured model is static on this worksheet. The blue line represents net surface-water TP loads without the influence of groundwater. The Discharge Calibration Plot worksheet shows modeled discharge as a red line. It also shows net surface-water discharge as a blue line. The distance of the read line above or below the blue line indicates the magnitude and cumulative amount of unaccounted for discharge gains and losses, respectively. The gains and losses are assumed to represent groundwater exchange in the Boise River.
A13: Major_inflows
A14: Explanation | B14: Abbreviations are the same as in the March.4.2013_Model worksheet. This worksheet it simply used to plot vertical lines on charts showing the location of major tributary inflows to the lower Boise River.

Sheet March.4.2013_Model
S1: Variable in Report | T1: Factor | U1: Conversion
S2: F | T2: 5.39378 | U2: [ft3/s ∙ mg/L] to lbs/d
S3: 1/F | T3: =1/T2 -> 0.1853987371 | U3: lbs/d to [ft3/s ∙ mg/L]
D5: Equation No. In Report | E5: 1 | F5: 5 | G5: 5 | H5: 1 | I5: 5 | K5: 1 | L5: 3 | M5: 4 | N5: 18 | O5: 18 | Q5: 14 | R5: 17 | S5: 5 | T5: 5 | U5: 7 | W5: 9 | X5: 12
D6: Variable in Report | E6: QUS, QDS, QD,or QR | F6: CUS, CDS, or CR | G6: CD | H6: = QUS - QD or + QR | I6: = MUS - MD or + MR | K6: Qgw | L6: Qgwi…n | M6: Qmi…n | N6: Cgw i…n | O6: Cgwupper i…n, Cgw = 0.25 | Q6: Cp | R6: Mp | S6: MUS, -MD, +MR | T6: ∆M | U6: ∆Mi…n | V6: Cgwbc | W6: Cm | X6: Mm
A7: Diversion, Return, or Main-stem | B7: Site Name | C7: USGS Site ID | D7: River Mile | E7: Measured Discharge | F7: Measured TP | G7: Estimated Diversion TP | H7: Net SW Discharge | I7: Net SW Load | J7: Discharge Uncertainty Propogation of Errror | K7: GW Gain/Loss per Subreach | L7: GW Gain/Loss per RM | M7: Modeled Discharge with GW Gain/Loss | N7: Estimated GW TP Dial | O7: Constant GW TP RM 28.8 to 3.8 | P7: SW TP Concentration Dial | Q7: Predictive TP Model | R7: Predictive TP Mass Balance Model | S7: SW Mass In/Out | T7: Mass Gain/Loss per Subreach | U7: Mass In/Out per RM | V7: Back-Calculated GW TP per Reach | W7: Measured TP Model | X7: Measured TP Mass Balance Model | Y7: Notes
D8: mile | E8: ft3/s | F8: mg/L | G8: mg/L | H8: ft3/s | I8: lbs/d | J8: ft3/s | K8: ft3/s | L8: ft3/s/mi | M8: ft3/s | N8: mg/L | O8: mg/L | P8: mg/L | Q8: mg/L | R8: lbs/d | S8: lbs/d | T8: lbs/d | U8: lbs/d/mi | V8: mg/L | W8: mg/L | X8: lbs/d
A9: M | B9: Boise River below Diversion Dam near Boise, ID | C9: 13203510 | D9: 61.1 | E9: 249 | F9: 0.02 | H9: =E9 -> 249 | I9: =F9*E9*$T$2 -> 26.8610244 | L9: 0 | M9: 249 | N9: 0.01 | O9: 0.01 | P9: 0.012 | Q9: =F9 -> 0.02 | R9: =Q9*M9*$T$2 -> 26.8610244 | S9: =F9*M9*$T$2 -> 26.8610244 | T9: 0 | U9: 0 | V9: 0 | W9: =F9 -> 0.02 | X9: =W9*M9*$T$2 -> 26.8610244 | Y9: mean daily Q
A10: M | B10: Boise River at Veteran's Memorial Parkway at Boise, ID | C10: 13205642 | D10: 50.17 | E10: 243 | F10: 0.01 | H10: =E10 -> 243 | I10: =F10*E10*$T$2 -> 13.1068854 | J10: 25.27 | K10: 0 | L10: 0 | M10: =E10 -> 243 | N10: 0.01 | O10: 0.01 | P10: =F10 -> 0.01 | Q10: =P10 -> 0.01 | R10: 13.1068854 | S10: =F10*M10*$T$2 -> 13.1068854 | T10: 0 | U10: 0 | V10: 0 | W10: =F10 -> 0.01 | X10: 13.1068854
A11: R | B11: Boise City Sewer Outflow at Boise, ID (Lander WWTP) | C11: 13205643 | D11: 50.01 | E11: 18.847 | F11: 1.54 | H11: =H10+E11 -> 261.847 | I11: =I10+(F11*E11*$T$2) -> 169.6580058 | L11: =(D10-D11)*Unmeasured_Gains_Losses!$B$6 -> 1.387445693 | M11: =M10+E11+L11 -> 263.2344457 | N11: 0.01 | O11: 0.01 | P11: =F11 -> 1.54 | Q11: =((P11*E11)+(Q10*M10)+(L11*N11))/(M11) -> 0.1195445922 | R11: 169.7328415 | S11: =(F11*E11*$T$2) -> 156.5511204 | U11: =(D10-D11)*Unmeasured_Gains_Losses!$C$6 -> -1.876107791 | W11: =((W10*M10)+(F11*E11)+(U11*$T$3))/M11 -> 0.1181705225 | X11: 167.781898
A12: D | B12: Riverside Village | D12: 47.69 | E12: 0 | G12: 0.09 | H12: =H11+E12 -> 261.847 | I12: =I11+(G12*E12*$T$2) -> 169.6580058 | L12: =(D11-D12)*Unmeasured_Gains_Losses!$B$6 -> 20.11796255 | M12: =M11+E12+L12 -> 283.3524082 | N12: 0.01 | O12: 0.01 | Q12: =((Q11*M11)+(E12*Q11)+(L12*N12))/M12 -> 0.1117669487 | R12: 170.8179602 | S12: =(G12*E12*$T$2) -> 0 | U12: =(D11-D12)*Unmeasured_Gains_Losses!$C$6 -> -27.20356296 | W12: =((W11*M11)+(E12*G12)+(U12*$T$3))/M12 -> 0.0919810279 | X12: 140.578335
A13: M | B13: Boise River at Glenwood Bridge near Boise, ID | C13: 13206000 | D13: 47.5 | E13: 285 | F13: 0.09 | H13: =H12 -> 261.847 | I13: =I12 -> 169.6580058 | J13: 29.07 | K13: =E13-(E10+SUM(E11:E12)) -> 23.153 | L13: =(D12-D13)*Unmeasured_Gains_Losses!$B$6 -> 1.64759176 | M13: =M12+L13 -> 285 | N13: 0.01213783404 | O13: =O12+((($O$39-$O$10)/($D$10-$D$39))*(D12-D13)) -> 0.01213783404 | Q13: =((Q12*M12)+(L13*N13))/M13 -> 0.1111909904 | R13: 170.925826 | S13: =F13*M13*$T$2 -> 138.350457 | T13: =S13-(S10+(SUM(S11+S12))) -> -31.30754876 | U13: =(D12-D13)*Unmeasured_Gains_Losses!$C$6 -> -2.227878001 | V13: =(T13/K13)*$T$3 -> -0.25069667 | W13: =((W12*M12)+(U13*$T$3))/M13 -> 0.09 | X13: 138.350457 | Y13: mean daily Q
A14: D | B14: New Dry Creek Canal | D14: 46.01 | E14: 0 | G14: 0.09 | H14: =H13+E14 -> 261.847 | I14: =I13+(G14*E14*$T$2) -> 169.6580058 | L14: =(D13-D14)*Unmeasured_Gains_Losses!$B$7 -> 5.072340426 | M14: =M13+E14+L14 -> 290.0723404 | N14: 0.02890295359 | O14: 0.02890295359 | Q14: =((Q13*M13)+(E14*Q13)+(L14*N14))/M14 -> 0.1097520634 | R14: 171.7165845 | S14: =(G14*E14*$T$2) -> 0 | U14: =(D13-D14)*Unmeasured_Gains_Losses!$C$7 -> 57.78581446 | W14: =((W13*M13)+(E14*G14)+(U14*$T$3))/M14 -> 0.1253598222 | X14: 196.1362715 | Y14: Not on North channel
A15: D | B15: Loss to North Channel (Boise River North Channel near Eagle, ID) | C15: 13206300 | D15: 45.51 | E15: -71.6 | F15: 0.14 | H15: 190.247 | I15: =I14+(F15*E15*$T$2) -> 115.590755 | L15: =(D14-D15)*Unmeasured_Gains_Losses!$B$7 -> 1.70212766 | M15: =M14+E15+L15 -> 220.1744681 | N15: 0.03452883263 | O15: 0.03452883263 | P15: =Q15 -> 0.1091705267 | Q15: =((Q14*M14)+(E15*Q14)+(L15*N15))/M15 -> 0.1091705267 | R15: 129.6479308 | S15: =(F15*E15*$T$2) -> -54.06725072 | U15: =(D14-D15)*Unmeasured_Gains_Losses!$C$7 -> 19.39121291 | W15: =((W14*M14)+(E15*W14)+(U15*$T$3))/M15 -> 0.1407191324 | X15: 167.114192 | Y15: instantaneous Q, measured at RM 42.8 = 71.6 + diversion Q from Ballentyne
A16: D | B16: Lemp Canal | D16: 44.81 | E16: 0 | G16: 0.09 | H16: 190.247 | I16: =I15+(G16*E16*$T$2) -> 115.590755 | L16: =(D15-D16)*Unmeasured_Gains_Losses!$B$7 -> 2.382978723 | M16: =M15+E16+L16 -> 222.5574468 | N16: 0.04240506329 | O16: 0.04240506329 | Q16: =((Q15*M15)+(E16*Q15)+(L16*N16))/M16 -> 0.108455652 | R16: 130.1929743 | S16: =(G16*E16*$T$2) -> 0 | U16: =(D15-D16)*Unmeasured_Gains_Losses!$C$7 -> 27.14769807 | W16: =((W15*M15)+(E16*G16)+(U16*$T$3))/M16 -> 0.1618274724 | X16: 194.26189
A17: D | B17: Warm Springs Canal | D17: 44.5 | E17: 0 | G17: 0.09 | H17: 190.247 | I17: =I16+(G17*E17*$T$2) -> 115.590755 | L17: =(D16-D17)*Unmeasured_Gains_Losses!$B$7 -> 1.055319149 | M17: =M16+E17+L17 -> 223.612766 | N17: 0.0458931083 | O17: 0.0458931083 | Q17: =((Q16*M16)+(E17*Q16)+(L17*N17))/M17 -> 0.108160394 | R17: 130.4542051 | S17: =(G17*E17*$T$2) -> 0 | U17: =(D16-D17)*Unmeasured_Gains_Losses!$C$7 -> 12.022552 | W17: =((W16*M16)+(E17*G17)+(U17*$T$3))/M17 -> 0.1710317158 | X17: 206.284442
A18: R | B18: West Boise Sewer Outflow near Eagle, ID (West Boise WWTP) | C18: 13206303 | D18: 44.16 | E18: 22.6 | F18: 4.76 | H18: 212.847 | I18: =I17+(F18*E18*$T$2) -> 695.8320323 | L18: =(D17-D18)*Unmeasured_Gains_Losses!$B$7 -> 1.157446809 | M18: =M17+E18+L18 -> 247.3702128 | N18: 0.04971870605 | O18: 0.04971870605 | P18: =F18 -> 4.76 | Q18: =((P18*E18)+(Q17*M17)+(L18*N18))/(M18) -> 0.5328838511 | R18: 711.005877 | S18: =(F18*E18*$T$2) -> 580.2412773 | U18: =(D17-D18)*Unmeasured_Gains_Losses!$C$7 -> 13.18602478 | W18: =((W17*M17)+(E18*F18)+(U18*$T$3))/M18 -> 0.5993670204 | X18: 799.7117441
A19: D | B19: Conway-Hamming Canal | D19: 43.5 | E19: 0 | G19: 0.623 | H19: 212.847 | I19: =I18+(G19*E19*$T$2) -> 695.8320323 | L19: =(D18-D19)*Unmeasured_Gains_Losses!$B$7 -> 2.246808511 | M19: =M18+E19+L19 -> 249.6170213 | N19: 0.05714486639 | O19: 0.05714486639 | Q19: =((Q18*M18)+(E19*Q18)+(L19*N19))/M19 -> 0.5286017137 | R19: 711.6984037 | S19: =(G19*E19*$T$2) -> 0 | U19: =(D18-D19)*Unmeasured_Gains_Losses!$C$7 -> 25.59640104 | W19: =((W18*M18)+(E19*G19)+(U19*$T$3))/M19 -> 0.6129833896 | X19: 825.3081451
A20: D | B20: Thomas Aiken Canal | D20: 43.07 | E20: 0 | G20: 0.623 | H20: 212.847 | I20: =I19+(G20*E20*$T$2) -> 695.8320323 | L20: =(D19-D20)*Unmeasured_Gains_Losses!$B$7 -> 1.463829787 | M20: 251.0808511 | N20: 0.06198312236 | O20: 0.06198312236 | Q20: =((Q19*M19)+(E20*Q19)+(L20*N20))/M20 -> 0.5258812745 | R20: 712.1877961 | S20: =(G20*E20*$T$2) -> 0 | U20: =(D19-D20)*Unmeasured_Gains_Losses!$C$7 -> 16.6764431 | W20: =((W19*M19)+(E20*G20)+(U20*$T$3))/M20 -> 0.6217235549 | X20: 841.9845882
A21: D | B21: Mace-Catlin Canal | D21: 43.07 | E21: 0 | G21: 0.623 | H21: 212.847 | I21: =I20+(G21*E21*$T$2) -> 695.8320323 | L21: =(D20-D21)*Unmeasured_Gains_Losses!$B$7 -> 0 | M21: 251.0808511 | N21: 0.06198312236 | O21: 0.06198312236 | Q21: =((Q20*M20)+(E21*Q20)+(L21*N21))/M21 -> 0.5258812745 | R21: 712.1877961 | S21: =(G21*E21*$T$2) -> 0 | U21: =(D20-D21)*Unmeasured_Gains_Losses!$C$7 -> 0 | W21: =((W20*M20)+(E21*G21)+(U21*$T$3))/M21 -> 0.6217235549 | X21: 841.9845882
A22: D | B22: Graham-Gilbert Canal | D22: 42.85 | E22: 0 | G22: 0.623 | H22: 212.847 | I22: =I21+(G22*E22*$T$2) -> 695.8320323 | L22: =(D21-D22)*Unmeasured_Gains_Losses!$B$7 -> 0.7489361702 | M22: 251.8297872 | N22: 0.06445850914 | O22: 0.06445850914 | Q22: =((Q21*M21)+(E22*Q21)+(L22*N22))/M22 -> 0.5245090134 | R22: 712.4481825 | S22: =(G22*E22*$T$2) -> 0 | U22: =(D21-D22)*Unmeasured_Gains_Losses!$C$7 -> 8.532133679 | W22: =((W21*M21)+(E22*G22)+(U22*$T$3))/M22 -> 0.6261559755 | X22: 850.5167219
A23: M | B23: Boise River South Channel at Eagle, ID | C23: 13206305 | D23: 42.8 | E23: 252 | F23: 0.623 | H23: =H22 -> 212.847 | I23: =I22 -> 695.8320323 | J23: 12.93 | K23: =E23-(E13+(SUM(E14:E22))) -> 16 | L23: =(D22-D23)*Unmeasured_Gains_Losses!$B$7 -> 0.170212766 | M23: =M22+L23 -> 252 | N23: 0.06502109705 | O23: 0.06502109705 | Q23: =((Q22*M22)+(L23*N23))/M23 -> 0.5241986535 | R23: 712.5078777 | S23: =F23*M23*$T$2 -> 846.8018849 | T23: =S23-(S13+(SUM(S14:S22))) -> 182.2774013 | U23: =(D22-D23)*Unmeasured_Gains_Losses!$C$7 -> 1.939121291 | V23: =(T23/K23)*$T$3 -> 2.112125 | W23: =((W22*M22)+(U23*$T$3))/M23 -> 0.6271596696 | X23: 852.4558432 | Y23: mean daily Q
A24: D | B24: Jon Wroten Canal | D24: 42.7 | E24: 0 | G24: 0.623 | H24: =H23+E24 -> 212.847 | I24: =I23+(G24*E24*$T$2) -> 695.8320323 | L24: =(D23-D24)*Unmeasured_Gains_Losses!$B$8 -> -0.3401960784 | M24: =M23+E24+L24 -> 251.6598039 | N24: 0.06614627286 | O24: 0.06614627286 | Q24: =((Q23*M23)+(E24*Q23)+(L24*Q23))/M24 -> 0.5241986535 | R24: 711.5460032 | S24: =(G24*E24*$T$2) -> 0 | U24: =(D23-D24)*Unmeasured_Gains_Losses!$C$8 -> -7.202134641 | W24: =((W23*M23)+(E24*G24)+(U24*$T$3))/M24 -> 0.6227016298 | X24: 845.2537086 | Y24: not in IDWR report
A25: D | B25: Barber Pumps | D25: 42.4 | E25: 0 | G25: 0.623 | H25: =H24+E25 -> 212.847 | I25: =I24+(G25*E25*$T$2) -> 695.8320323 | L25: =(D24-D25)*Unmeasured_Gains_Losses!$B$8 -> -1.020588235 | M25: =M24+E25+L25 -> 250.6392157 | N25: 0.06952180028 | O25: 0.06952180028 | Q25: =((Q24*M24)+(E25*Q24)+(L25*Q24))/M25 -> 0.5241986535 | R25: 708.6603795 | S25: =(G25*E25*$T$2) -> 0 | U25: =(D24-D25)*Unmeasured_Gains_Losses!$C$8 -> -21.60640392 | W25: =((W24*M24)+(E25*G25)+(U25*$T$3))/M25 -> 0.6092548991 | X25: 823.6473046
A26: D | B26: Seven Suckers Canal | D26: 42.02 | E26: 0 | G26: 0.623 | H26: =H25+E26 -> 212.847 | I26: =I25+(G26*E26*$T$2) -> 695.8320323 | L26: =(D25-D26)*Unmeasured_Gains_Losses!$B$8 -> -1.292745098 | M26: =M25+E26+L26 -> 249.3464706 | N26: 0.07379746835 | O26: 0.07379746835 | Q26: =((Q25*M25)+(E26*Q25)+(L26*Q25))/M26 -> 0.5241986535 | R26: 705.0052563 | S26: =(G26*E26*$T$2) -> 0 | U26: =(D25-D26)*Unmeasured_Gains_Losses!$C$8 -> -27.36811164 | W26: =((W25*M25)+(E26*G26)+(U26*$T$3))/M26 -> 0.5920643528 | X26: 796.279193
A27: R | B27: Thurman Drain at Mouth near Eagle, ID | C27: 13208750 | D27: 41.89 | E27: 3.47 | F27: 0.076 | H27: =H26+E27 -> 216.317 | I27: =I26+(F27*E27*$T$2) -> 697.25448 | L27: =(D26-D27)*Unmeasured_Gains_Losses!$B$8 -> -0.442254902 | M27: =M26+E27+L27 -> 252.3742157 | N27: 0.07526019691 | O27: 0.07526019691 | P27: =F27 -> 0.076 | Q27: =((P27*E27)+(Q26*M26)+(L27*Q26))/(M27) -> 0.5180361803 | R27: 705.177267 | S27: =(F27*E27*$T$2) -> 1.422447662 | U27: =(D26-D27)*Unmeasured_Gains_Losses!$C$8 -> -9.362775034 | W27: =((W26*M26)+(F27*E27)+(U27*$T$3))/M27 -> 0.579128219 | X27: 788.3388656
A28: M | B28: Boise River above Phyllis Diversion near Eagle, ID | C28: 13208800 | D28: 41.78 | E28: 252 | F28: 0.57 | H28: =H27 -> 216.317 | I28: =I27 -> 697.25448 | J28: 29.08 | K28: =E28-(E23+SUM(E24:E27)) -> -3.47 | L28: =(D27-D28)*Unmeasured_Gains_Losses!$B$8 -> -0.3742156863 | M28: =M27+L28 -> 252 | N28: 0.0764978903 | O28: 0.0764978903 | Q28: =((Q27*M27)+(L28*Q27))/M28 -> 0.5180361803 | R28: 704.1316436 | S28: =F28*M28*$T$2 -> 774.7625592 | T28: =S28-(S23+(SUM(S24:S27))) -> -73.46177334 | U28: =(D27-D28)*Unmeasured_Gains_Losses!$C$8 -> -7.922348105 | V28: =(T28/K28)*$T$3 -> 3.924991354 | W28: =((W27*M27)+(U28*$T$3))/M28 -> 0.5741596696 | X28: 780.4165175
A29: D | B29: Phyllis Canal | D29: 41.41 | E29: 0 | G29: 0.57 | H29: =H28+E29 -> 216.317 | I29: =I28+(G29*E29*$T$2) -> 697.25448 | L29: =(D28-D29)*Unmeasured_Gains_Losses!$B$9 -> -1.80657277 | M29: =M28+E29+L29 -> 250.1934272 | N29: 0.08066104079 | O29: 0.08066104079 | Q29: =((Q28*M28)+(E29*Q28)+(L29*Q28))/M29 -> 0.5180361803 | R29: 699.0837664 | S29: =(G29*E29*$T$2) -> 0 | U29: =(D28-D29)*Unmeasured_Gains_Losses!$C$9 -> -55.19746287 | W29: =((W28*M28)+(E29*G29)+(U29*$T$3))/M29 -> 0.5374029938 | X29: 725.2190546
A30: R | B30: GAIN FROM NORTH CHANNEL | C30: Gain from N. Channel | D30: 40.2 | E30: =North_Channel!L16 -> 85.4 | F30: 0.08 | H30: =H29+E30 -> 301.717 | I30: =I29+(F30*E30*$T$2) -> 734.1047849 | L30: =(D29-D30)*Unmeasured_Gains_Losses!$B$9 -> -5.907981221 | M30: =M29+E30+L30 -> 329.685446 | N30: 0.09427566807 | O30: 0.09427566807 | P30: =North_Channel!P16 -> 0.104538785 | Q30: =((P30*E30)+(Q29*M29)+(L30*Q29))/(M30) -> 0.4109259697 | R30: 730.72942 | S30: =(F30*E30*$T$2) -> 36.85030496 | U30: =(D29-D30)*Unmeasured_Gains_Losses!$C$9 -> -180.5106218 | W30: =((W29*M29)+(F30*E30)+(U30*$T$3))/M30 -> 0.3270397793 | X30: 581.5587378 | Y30: TP result from North Channel sample upstream (RM 41.8)
A31: M | B31: Boise River Below Eagle Island, ID | C31: 434050116260100 | D31: 39.65 | E31: 327 | F31: 0.28 | H31: =H30 -> 301.717 | I31: =I30 -> 734.1047849 | J31: 29.41 | K31: =E31-(E28+SUM(E29:E30)) -> -10.4 | L31: =(D30-D31)*Unmeasured_Gains_Losses!$B$9 -> -2.685446009 | M31: =M30+L31 -> 327 | N31: 0.100464135 | O31: 0.100464135 | Q31: =((Q30*M30)+(L31*Q30))/M31 -> 0.4109259697 | R31: 724.7772786 | S31: =F31*M31*$T$2 -> 493.8544968 | T31: =S31-(S28+(SUM(S29:S30))) -> -317.7583674 | U31: =(D30-D31)*Unmeasured_Gains_Losses!$C$9 -> -82.05028265 | V31: =(T31/K31)*$T$3 -> 5.664615385 | W31: =((W30*M30)+(U31*$T$3))/M31 -> 0.2832056169 | X31: 499.5084551
A32: R | B32: Eureka No. 1 Canal at Star Road near Star, ID | C32: 13209490 | D32: 36.63 | E32: 0.49 | F32: 0.02 | H32: =H31+E32 -> 302.207 | I32: =I31+(F32*E32*$T$2) -> 734.157644 | L32: =(D31-D32)*Unmeasured_Gains_Losses!$B$10 -> -7.889169231 | M32: =M31+E32+L32 -> 319.6008308 | N32: 0.1344444444 | O32: 0.1344444444 | P32: =F32 -> 0.02 | Q32: =((P32*E32)+(Q31*M31)+(L32*Q31))/M32 -> 0.4103266167 | R32: 707.3442336 | S32: =(F32*E32*$T$2) -> 0.052859044 | U32: =(D31-D32)*Unmeasured_Gains_Losses!$C$10 -> 100.6432945 | W32: =((W31*M31)+(F32*E32)+(U32*$T$3))/M32 -> 0.3481754918 | X32: 600.2046086
A33: M | B33: Boise River near Star, ID | C33: 13210000 | D33: 36.4 | E33: 319 | F33: 0.35 | H33: =H32 -> 302.207 | I33: =I32 -> 734.157644 | J33: 16.71 | K33: =E33-(E31+SUM(E32)) -> -8.49 | L33: =(D32-D33)*Unmeasured_Gains_Losses!$B$10 -> -0.6008307692 | M33: =M32+L33 -> 319 | N33: 0.1370323488 | O33: 0.1370323488 | Q33: =((Q32*M32)+(L33*Q32))/M33 -> 0.4103266167 | R33: 706.0144681 | S33: =F33*M33*$T$2 -> 602.215537 | T33: =S33-(S31+S32) -> 108.3081812 | U33: =(D32-D33)*Unmeasured_Gains_Losses!$C$10 -> 7.664886666 | V33: =(T33/K33)*$T$3 -> -2.365159011 | W33: =((W32*M32)+(U33*$T$3))/M33 -> 0.3532860086 | X33: 607.8694953
A34: D | B34: Canyon County Canal | D34: 36.32 | E34: 0 | G34: 0.35 | H34: =H33+E34 -> 302.207 | I34: =I33+(G34*E34*$T$2) -> 734.157644 | L34: =(D33-D34)*Unmeasured_Gains_Losses!$B$11 -> 0.4024144869 | M34: =M33+E34+L34 -> 319.4024145 | N34: 0.1379324895 | O34: 0.1379324895 | Q34: =((Q33*M33)+(E34*Q33)+(L34*N34))/M34 -> 0.4099834279 | R34: 706.3138554 | S34: =(G34*E34*$T$2) -> 0 | U34: =(D33-D34)*Unmeasured_Gains_Losses!$C$11 -> 2.19328242 | W34: =((W33*M33)+(E34*G34)+(U34*$T$3))/M34 -> 0.354114006 | X34: 610.0627777
A35: D | B35: Caldwell Highline Canal | D35: 36.27 | E35: 0 | G35: 0.35 | H35: =H34+E35 -> 302.207 | I35: =I34+(G35*E35*$T$2) -> 734.157644 | L35: =(D34-D35)*Unmeasured_Gains_Losses!$B$11 -> 0.2515090543 | M35: =M34+E35+L35 -> 319.6539235 | N35: 0.1384950774 | O35: 0.1384950774 | Q35: =((Q34*M34)+(E35*Q34)+(L35*N35))/M35 -> 0.4097698163 | R35: 706.5017357 | S35: =(G35*E35*$T$2) -> 0 | U35: =(D34-D35)*Unmeasured_Gains_Losses!$C$11 -> 1.370801513 | W35: =((W34*M34)+(E35*G35)+(U35*$T$3))/M35 -> 0.3546304457 | X35: 611.4335792
A36: D | B36: Otter Mitigation | D36: 35.74 | E36: 0 | G36: 0.35 | H36: =H35+E36 -> 302.207 | I36: =I35+(G36*E36*$T$2) -> 734.157644 | L36: =(D35-D36)*Unmeasured_Gains_Losses!$B$11 -> 2.665995976 | M36: =M35+E36+L36 -> 322.3199195 | N36: 0.1444585091 | O36: 0.1444585091 | Q36: =((Q35*M35)+(E36*Q35)+(L36*N36))/M36 -> 0.4075753541 | R36: 708.5790195 | S36: =(G36*E36*$T$2) -> 0 | U36: =(D35-D36)*Unmeasured_Gains_Losses!$C$11 -> 14.53049603 | W36: =((W35*M35)+(E36*G36)+(U36*$T$3))/M36 -> 0.3600551563 | X36: 625.9640753
A37: M | B37: Boise River near Middleton, ID | C37: 13210050 | D37: 31.43 | E37: 344 | F37: 0.398 | H37: =H36 -> 302.207 | I37: =I36 -> 734.157644 | J37: 36.17 | K37: =E37-(E33+SUM(E34:E36)) -> 25 | L37: =(D36-D37)*Unmeasured_Gains_Losses!$B$11 -> 21.68008048 | M37: =M36+L37 -> 344 | N37: 0.1929535865 | O37: 0.1929535865 | Q37: =((Q36*M36)+(L37*N37))/M37 -> 0.3940491413 | R37: 731.1425458 | S37: =F37*M37*$T$2 -> 738.4732074 | T37: =S37-(S33+(SUM(S34:S36))) -> 136.2576704 | U37: =(D36-D37)*Unmeasured_Gains_Losses!$C$11 -> 118.1630904 | V37: =(T37/K37)*$T$3 -> 1.01048 | W37: =((W36*M36)+(U37*$T$3))/M37 -> 0.4010471998 | X37: 744.1271657 | Y37: Idaho Power Gage - mean daily Q
A38: R | B38: Fifteenmile Creek at Mouth near Middleton, ID | C38: 13210815 | D38: 30.31 | E38: 17.2 | F38: 0.12 | H38: =H37+E38 -> 319.407 | I38: =I37+(F38*E38*$T$2) -> 745.2904059 | L38: =(D37-D38)*Unmeasured_Gains_Losses!$B$12 -> -4.410810811 | M38: =M37+E38+L38 -> 356.7891892 | N38: 0.2055555556 | O38: 0.2055555556 | P38: =F38 -> 0.12 | Q38: =((P38*E38)+(Q37*M37)+(L38*Q37))/M38 -> 0.3808378519 | R38: 732.900507 | S38: =(F38*E38*$T$2) -> 11.13276192 | U38: =(D37-D38)*Unmeasured_Gains_Losses!$C$12 -> -22.0579362 | W38: =((W37*M37)+(F38*E38)+(U38*$T$3))/M38 -> 0.3809945125 | X38: 733.2019914 | Y38: includes Fivemile Creek + Meridian WWTP + Tenmile Creek
A39: M | B39: Boise River at Middleton Road near Middleton, ID | C39: 13210820 | D39: 28.84 | E39: 351 | F39: 0.369 | H39: =H38 -> 319.407 | I39: =I38 -> 745.2904059 | J39: 36.53 | K39: =E39-(E37+E38) -> -10.2 | L39: =(D38-D39)*Unmeasured_Gains_Losses!$B$12 -> -5.789189189 | M39: =M38+L39 -> 351 | N39: 0.25 | O39: 0.25 | Q39: =((Q38*M38)+(L39*Q38))/M39 -> 0.3808378519 | R39: 721.0086117 | S39: =F39*M39*$T$2 -> 698.5969918 | T39: =S39-(S37+S38) -> -51.00897746 | U39: =(D38-D39)*Unmeasured_Gains_Losses!$C$12 -> -28.95104126 | V39: =(T39/K39)*$T$3 -> 0.9271568627 | W39: =((W38*M38)+(U39*$T$3))/M39 -> 0.3719864294 | X39: 704.2509501
A40: R | B40: Mill Slough below Grade Ditch near Middleton, ID | C40: 132108247 | D40: 27.23 | E40: 38.4 | F40: 0.16 | H40: =H39+E40 -> 357.807 | I40: =I39+(F40*E40*$T$2) -> 778.4297902 | L40: =(D39-D40)*Unmeasured_Gains_Losses!$B$13 -> 11.90388889 | M40: =M39+E40+L40 -> 401.3038889 | N40: 0.25 | O40: =O39 -> 0.25 | P40: =F40 -> 0.16 | Q40: =((P40*E40)+(Q39*M39)+(L40*N40))/M40 -> 0.3558252541 | R40: 770.1997355 | S40: =(F40*E40*$T$2) -> 33.13938432 | U40: =(D39-D40)*Unmeasured_Gains_Losses!$C$13 -> -16.38523753 | W40: =((W39*M39)+(F40*E40)+(U40*$T$3))/M40 -> 0.3330977797 | X40: 721.0050969 | Y40: sum of North and South Middleton Drains, Star, Watts, Long Feeders. Middleton WWTP discharges below sampling location
A41: R | B41: Middleton WWTP on Boise River near Middleton, ID | C41: 434149116382200 | D41: 27.1 | E41: 1 | F41: 5.114 | H41: 358.807 | I41: =I40+(F41*E41*$T$2) -> 806.0135811 | L41: =(D40-D41)*Unmeasured_Gains_Losses!$B$13 -> 0.9611835749 | M41: 403.2650725 | N41: 0.25 | O41: =O40 -> 0.25 | P41: =F41 -> 5.114 | Q41: =((P41*E41)+(Q40*M40)+(L41*N41))/M41 -> 0.3673721437 | R41: =Q41*M41*$T$2 -> 799.0796296 | S41: =(F41*E41*$T$2) -> 27.58379092 | U41: =(D40-D41)*Unmeasured_Gains_Losses!$C$13 -> -1.323031602 | W41: =((W40*M40)+(E41*F41)+(U41*$T$3))/M41 -> 0.3435510672 | X41: =W41*M41*$T$2 -> 747.2658562 | Y41: 1.0 ft3/s on 8/22/12
A42: R | B42: Willow Creek at Middleton, ID | C42: 13210835 | D42: 26.95 | E42: 0.35 | F42: 0.16 | H42: 359.157 | I42: =I41+(F42*E42*$T$2) -> 806.3156328 | L42: =(D41-D42)*Unmeasured_Gains_Losses!$B$13 -> 1.109057971 | M42: 404.7241304 | N42: 0.25 | O42: =O41 -> 0.25 | P42: =F42 -> 0.16 | Q42: =((P42*E42)+(Q41*M41)+(L42*N42))/M42 -> 0.3668711783 | R42: 800.877185 | S42: =(F42*E42*$T$2) -> 0.30205168 | U42: =(D41-D42)*Unmeasured_Gains_Losses!$C$13 -> -1.526574925 | W42: =((W41*M41)+(F42*E42)+(U42*$T$3))/M42 -> 0.3417516044 | X42: 746.041333
A43: R | B43: Mason Slough near Caldwell, ID | C43: 13210849 | D43: 25.57 | E43: 4.94 | F43: 0.58 | H43: 364.097 | I43: =I42+(F43*E43*$T$2) -> 821.7698913 | L43: =(D42-D43)*Unmeasured_Gains_Losses!$B$13 -> 10.20333333 | M43: 419.8674638 | N43: 0.25 | O43: =O42 -> 0.25 | P43: =F43 -> 0.58 | Q43: =((P43*E43)+(Q42*M42)+(L43*N43))/M43 -> 0.3665386467 | R43: 830.0900772 | S43: =(F43*E43*$T$2) -> 15.45425846 | U43: =(D42-D43)*Unmeasured_Gains_Losses!$C$13 -> -14.04448931 | W43: =((W42*M42)+(F43*E43)+(U43*$T$3))/M43 -> 0.3300481755 | X43: 747.4511021
A44: R | B44: Mason Creek near Caldwell, ID | C44: 13210983 | D44: 24.95 | E44: 44.7 | F44: 0.14 | H44: 408.797 | I44: =I43+(F44*E44*$T$2) -> 855.5241665 | L44: =(D43-D44)*Unmeasured_Gains_Losses!$B$13 -> 4.58410628 | M44: 469.15157 | N44: 0.25 | O44: =O43 -> 0.25 | P44: =F44 -> 0.14 | Q44: =((P44*E44)+(Q43*M43)+(L44*N44))/M44 -> 0.3438157066 | R44: 870.0257677 | S44: =(F44*E44*$T$2) -> 33.75427524 | U44: =(D43-D44)*Unmeasured_Gains_Losses!$C$13 -> -6.309843024 | W44: =((W43*M43)+(F44*E44)+(U44*$T$3))/M44 -> 0.3062222586 | X44: 774.8955344
A45: M | B45: Boise River at HWY 20-26 Crossing near Caldwell, ID | C45: 13211000 | D45: 24.7 | E45: 471 | F45: 0.3 | H45: =H49 -> 411.197 | I45: =I49 -> 861.9050083 | J45: 21.75 | K45: =E45-(E39+(SUM(E40:E44))) -> 30.61 | L45: =(D44-D45)*Unmeasured_Gains_Losses!$B$13 -> 1.848429952 | M45: =M49+L45 -> 473.8156942 | N45: 0.25 | O45: 0.25 | Q45: =((Q49*M49)+(L45*N45))/M45 -> 0.3434307117 | R45: 877.6913137 | S45: =F45*M45*$T$2 -> 766.6972845 | T45: =S45-(S39+(SUM(S40:S44))) -> -42.13346793 | U45: =(D44-D45)*Unmeasured_Gains_Losses!$C$13 -> -2.544291542 | V45: =(T45/K45)*$T$3 -> -0.2551941112 | W45: =((W44*M44)+(U45*$T$3))/M45 -> 0.3022123301 | X45: 772.3512428 | Y45: Measuring section did not include Seebree Q or Campbell Q, WQ at Seebree & Cambell assumed the same
A46: R | B46: Riverside Canal at HWY 20-26 Xing at Caldwell, ID | C46: 132109853 | D46: 24.57 | E46: -2.45 | F46: 0.21 | H46: =H44+E46 -> 406.347 | I46: =I44+(F46*E46*$T$2) -> 852.7490667 | L46: =(D45-D46)*Unmeasured_Gains_Losses!$B$14 -> 0.07947094801 | M46: =M44+E46+L46 -> 466.781041 | N46: 0.25 | O46: 0.25 | Q46: =((Q44*M44)+(L46*N46)+(E46*Q44))/M46 -> 0.3437997341 | R46: 865.5894875 | S46: =(F46*E46*$T$2) -> -2.77509981 | U46: =(D45-D46)*Unmeasured_Gains_Losses!$C$14 -> 11.80907695 | W46: =((W45*M45)+(F46*E46)+(U46*$T$3))/M46 -> 0.3103550063 | X46: 781.38522
A47: D | B47: Hartley Drain near Caldwell, ID | C47: 13210988 | D47: 24.43 | E47: 4.85 | F47: 0.35 | H47: 411.197 | I47: =I46+(F47*E47*$T$2) -> 861.9050083 | L47: =(D46-D47)*Unmeasured_Gains_Losses!$B$14 -> 0.08558409786 | M47: 471.7166251 | N47: 0.25 | O47: 0.25 | P47: =F47 -> 0.35 | Q47: =((P47*E47)+(Q46*M46)+(L47*N47))/M47 -> 0.3438464646 | R47: 874.8608345 | S47: =(F47*E47*$T$2) -> 9.15594155 | U47: =(D46-D47)*Unmeasured_Gains_Losses!$C$14 -> 12.71746749 | W47: =((W46*M46)+(F47*E47)+(U47*$T$3))/M47 -> 0.3157046571 | X47: 803.258629
A48: D | B48: Sebree Canal | D48: 24.03 | E48: 0 | G48: 0.3 | H48: 411.197 | I48: =I47+(G48*E48*$T$2) -> 861.9050083 | L48: =(D47-D48)*Unmeasured_Gains_Losses!$B$14 -> 0.2445259939 | M48: =M47+E48+L48 -> 471.9611511 | N48: 0.25 | O48: 0.25 | Q48: =((Q47*M47)+(E48*Q47)+(L48*N48))/M48 -> 0.3437978421 | R48: 875.1905643 | S48: =(G48*E48*$T$2) -> 0 | U48: =(D47-D48)*Unmeasured_Gains_Losses!$C$14 -> 36.3356214 | W48: =((W47*M47)+(E48*G48)+(U48*$T$3))/M48 -> 0.329814675 | X48: 839.5942504 | Y48: Also known as Farmer's Co-op Ditch
A49: D | B49: Campbell Canal | D49: 24.02 | E49: 0 | G49: 0.3 | H49: 411.197 | I49: =I48+(G49*E49*$T$2) -> 861.9050083 | L49: =(D48-D49)*Unmeasured_Gains_Losses!$B$14 -> 0.006113149847 | M49: =M48+E49+L49 -> 471.9672642 | N49: 0.25 | O49: 0.25 | Q49: =((Q48*M48)+(E49*Q48)+(L49*N49))/M49 -> 0.3437966272 | R49: 875.1988076 | S49: =(G49*E49*$T$2) -> 0 | U49: =(D48-D49)*Unmeasured_Gains_Losses!$C$14 -> 0.9083905349 | W49: =((W48*M48)+(E49*G49)+(U49*$T$3))/M49 -> 0.3301672381 | X49: 840.5026409 | Y49: Include this in model because Campbell Canal is diverted before Sebree Canal is measured
A50: D | B50: Shipley Pumps | D50: 23.19 | E50: 0 | G50: 0.3 | H50: =H45+E50 -> 411.197 | I50: =I45+(G50*E50*$T$2) -> 861.9050083 | L50: =(D49-D50)*Unmeasured_Gains_Losses!$B$14 -> 0.5073914373 | M50: =M45+E50+L50 -> 474.3230856 | N50: 0.25 | O50: 0.25 | Q50: =((Q45*M45)+(E50*Q45)+(L50*N50))/M50 -> 0.3433307673 | R50: 878.3755031 | S50: =(G50*E50*$T$2) -> 0 | U50: =(D49-D50)*Unmeasured_Gains_Losses!$C$14 -> 75.3964144 | W50: =((W49*M49)+(E50*G50)+(U50*$T$3))/M50 -> 0.3579976039 | X50: 915.8990553
A51: D | B51: Wagner Pumps | D51: 23.09 | E51: 0 | G51: 0.3 | H51: =H50+E51 -> 411.197 | I51: =I50+(G51*E51*$T$2) -> 861.9050083 | L51: =(D50-D51)*Unmeasured_Gains_Losses!$B$14 -> 0.06113149847 | M51: =M50+E51+L51 -> 474.3842171 | N51: 0.25 | O51: 0.25 | Q51: =((Q50*M50)+(E51*Q50)+(L51*N51))/M51 -> 0.3433187403 | R51: 878.4579356 | S51: =(G51*E51*$T$2) -> 0 | U51: =(D50-D51)*Unmeasured_Gains_Losses!$C$14 -> 9.083905349 | W51: =((W50*M50)+(E51*G51)+(U51*$T$3))/M51 -> 0.3615016405 | X51: 924.9829607
A52: R | B52: Caldwell WWTP on Boise River at Caldwell, ID | C52: 434038116420900 | D52: 22.55 | E52: 5.601 | F52: 2.364 | H52: =H51+E52 -> 416.798 | I52: =I51+(F52*E52*$T$2) -> 933.3227763 | L52: =(D51-D52)*Unmeasured_Gains_Losses!$B$14 -> 0.3301100917 | M52: =M51+E52+L52 -> 480.3153272 | N52: 0.25 | O52: 0.25 | P52: =F52 -> 2.364 | Q52: =((P52*E52)+(Q51*M51)+(L52*N52))/M52 -> 0.3668179493 | R52: 950.320839 | S52: =(F52*E52*$T$2) -> 71.41776805 | U52: =(D51-D52)*Unmeasured_Gains_Losses!$C$14 -> 49.05308888 | W52: =((W51*M51)+(E52*F52)+(U52*$T$3))/M52 -> 0.403538689 | X52: 1045.453818
A53: R | B53: Indian Creek at Mouth near Caldwell, ID | C53: 13211445 | D53: 22.44 | E53: 177 | F53: 0.44 | H53: =H52+E53 -> 593.798 | I53: =I52+(F53*E53*$T$2) -> 1353.390363 | L53: =(D52-D53)*Unmeasured_Gains_Losses!$B$14 -> 0.06724464832 | M53: =M52+E53+L53 -> 657.3825719 | N53: 0.25 | O53: 0.25 | P53: =F53 -> 0.44 | Q53: =((P53*E53)+(Q52*M52)+(L53*N53))/M53 -> 0.3865102383 | R53: 1370.479101 | S53: =(F53*E53*$T$2) -> 420.0675864 | U53: =(D52-D53)*Unmeasured_Gains_Losses!$C$14 -> 9.992295884 | W53: =((W52*M52)+(F53*E53)+(U53*$T$3))/M53 -> 0.4161326877 | X53: 1475.5137
A54: M | B54: Boise River below WWTP near Caldwell, ID | C54: 13211600 | D54: 21.43 | E54: 658 | F54: 0.44 | H54: =H53 -> 593.798 | I54: =I53 -> 1353.390363 | J54: 30.92 | K54: =E54-(E45+(SUM(E46:E53))) -> 1.999 | L54: =(D53-D54)*Unmeasured_Gains_Losses!$B$14 -> 0.6174281346 | M54: =M53+L54 -> 658 | N54: 0.25 | O54: 0.25 | Q54: =((Q53*M53)+(L54*N54))/M54 -> 0.3863821452 | R54: 1371.311669 | S54: =F54*M54*$T$2 -> 1561.607186 | T54: =S54-(S45+(SUM(S46:S53))) -> 297.0437049 | U54: =(D53-D54)*Unmeasured_Gains_Losses!$C$14 -> 91.74744402 | V54: =(T54/K54)*$T$3 -> 27.54953864 | W54: =((W53*M53)+(U54*$T$3))/M54 -> 0.4415930649 | X54: 1567.261144
A55: D | B55: Simplot Pumps | D55: 20.08 | E55: 0 | G55: 0.44 | H55: =H54+E55 -> 593.798 | I55: =I54+(G55*E55*$T$2) -> 1353.390363 | L55: =(D54-D55)*Unmeasured_Gains_Losses!$B$15 -> 8.890814558 | M55: =M54+E55+L55 -> 666.8908146 | N55: 0.25 | O55: 0.25 | Q55: =((Q54*M54)+(E55*Q54)+(L55*N55))/M55 -> 0.384563934 | R55: 1383.300443 | S55: =(G55*E55*$T$2) -> 0 | U55: =(D54-D55)*Unmeasured_Gains_Losses!$C$15 -> -84.30001393 | W55: =((W54*M54)+(E55*G55)+(U55*$T$3))/M55 -> 0.4122700667 | X55: 1482.96113
A56: D | B56: Eureka No.2 Canal | D56: 20.08 | E56: 0 | G56: 0.44 | H56: 593.798 | I56: 1353.390363 | L56: =(D55-D56)*Unmeasured_Gains_Losses!$B$15 -> 0 | M56: =M55+E56+L56 -> 666.8908146 | N56: 0.25 | O56: 0.25 | Q56: 0.384563934 | R56: 1383.300443 | S56: 0 | U56: =(D55-D56)*Unmeasured_Gains_Losses!$C$15 -> 0 | W56: 0.4122700667 | X56: 1482.96113
A57: D | B57: Upper Center Point Canal | D57: 20.08 | E57: 0 | G57: 0.44 | H57: 593.798 | I57: 1353.390363 | L57: =(D56-D57)*Unmeasured_Gains_Losses!$B$15 -> -2.339742111e-14 | M57: 666.8908146 | N57: 0.25 | O57: 0.25 | Q57: 0.384563934 | R57: 1383.300443 | S57: 0 | U57: =(D56-D57)*Unmeasured_Gains_Losses!$C$15 -> 2.218472686e-13 | W57: 0.4122700667 | X57: 1482.96113
A58: D | B58: McManus and Teater Canal | D58: 20 | E58: 0 | G58: 0.44 | H58: 593.798 | I58: 1353.390363 | L58: =(D57-D58)*Unmeasured_Gains_Losses!$B$15 -> 0.5268630849 | M58: 667.4176776 | N58: 0.25 | O58: 0.25 | Q58: 0.3844577085 | R58: 1384.010889 | S58: 0 | U58: =(D57-D58)*Unmeasured_Gains_Losses!$C$15 -> -4.995556381 | W58: 0.410556927 | X58: 1477.965574
A59: D | B59: Vale Pumps | D59: 19.07 | E59: 0 | G59: 0.44 | H59: 593.798 | I59: 1353.390363 | L59: =(D58-D59)*Unmeasured_Gains_Losses!$B$15 -> 6.124783362 | M59: 673.542461 | N59: 0.25 | O59: 0.25 | Q59: 0.3832350323 | R59: 1392.269823 | S59: 0 | U59: =(D58-D59)*Unmeasured_Gains_Losses!$C$15 -> -58.07334293 | W59: 0.3908383533 | X59: 1419.892231
A60: D | B60: Lower Center Point Canal | D60: 18.06 | E60: 0 | G60: 0.44 | H60: 593.798 | I60: 1353.390363 | L60: =(D59-D60)*Unmeasured_Gains_Losses!$B$15 -> 6.651646447 | M60: 680.1941075 | N60: 0.25 | O60: 0.25 | Q60: 0.3819321214 | R60: 1401.239202 | S60: 0 | U60: =(D59-D60)*Unmeasured_Gains_Losses!$C$15 -> -63.06889931 | W60: 0.3698258031 | X60: 1356.823331
A61: M | B61: Boise River at Notus, ID | C61: 13212500 | D61: 15.66 | E61: 696 | F61: 0.32 | H61: =H60 -> 593.798 | I61: =I60 -> 1353.390363 | J61: 31.3 | K61: =E61-(E54+(SUM(E55:E60))) -> 38 | L61: =(D60-D61)*Unmeasured_Gains_Losses!$B$15 -> 15.80589255 | M61: =M60+L61 -> 696 | N61: 0.25 | O61: 0.25 | Q61: =((Q60*M60)+(L61*N61))/M61 -> 0.3789359936 | R61: 1422.552579 | S61: =F61*M61*$T$2 -> 1201.302682 | T61: =S61-(S54+(SUM(S55:S60))) -> -360.304504 | U61: =(D60-D61)*Unmeasured_Gains_Losses!$C$15 -> -149.8666914 | V61: =(T61/K61)*$T$3 -> -1.757894737 | W61: =((W60*M60)+(U61*$T$3))/M61 -> 0.3215060873 | X61: 1206.95664
A62: D | B62: Bowman and Swisher Canal | D62: 14.98 | G62: 0.32 | H62: =H61+E62 -> 593.798 | I62: =I61+(G62*E62*$T$2) -> 1353.390363 | L62: =(D61-D62)*Unmeasured_Gains_Losses!$B$16 -> 0.7263860668 | M62: 696.7263861 | N62: 0.25 | O62: 0.25 | Q62: =((Q61*M61)+(E62*Q61)+(L62*N62))/M62 -> 0.3788015688 | R62: 1423.532071 | S62: =(G62*E62*$T$2) -> 0 | U62: =(D61-D62)*Unmeasured_Gains_Losses!$C$16 -> 14.95396305 | W62: =((W61*M61)+(E62*G62)+(U62*$T$3))/M62 -> 0.3251501409 | X62: 1221.910603
A63: R | B63: Conway Gulch at Notus. ID | C63: 13212550 | D63: 14.22 | E63: 12.7 | F63: 0.17 | H63: 606.498 | I63: =I62+(F63*E63*$T$2) -> 1365.035534 | L63: =(D62-D63)*Unmeasured_Gains_Losses!$B$16 -> 0.8118432511 | M63: =M62+E63+L63 -> 710.2382293 | N63: 0.25 | O63: 0.25 | P63: =F63 -> 0.17 | Q63: =((P63*E63)+(Q62*M62)+(L63*N63))/M63 -> 0.3749206926 | R63: 1436.271968 | S63: =(F63*E63*$T$2) -> 11.64517102 | U63: =(D62-D63)*Unmeasured_Gains_Losses!$C$16 -> 16.71325282 | W63: =((W62*M62)+(F63*E63)+(U63*$T$3))/M63 -> 0.3263669695 | X63: 1250.269027 | Y63: includes Notus WWTP - seasonal discharge not during synoptic
A64: D | B64: Baxter Canal | D64: 13.33 | G64: 0.32 | H64: 606.498 | I64: =I63+(G64*E64*$T$2) -> 1365.035534 | L64: =(D63-D64)*Unmeasured_Gains_Losses!$B$16 -> 0.9507111756 | M64: 711.1889405 | N64: 0.25 | O64: 0.25 | Q64: =((Q63*M63)+(E64*Q63)+(L64*N64))/M64 -> 0.3747536997 | R64: 1437.553949 | S64: =(G64*E64*$T$2) -> 0 | U64: =(D63-D64)*Unmeasured_Gains_Losses!$C$16 -> 19.5720987 | W64: =((W63*M63)+(E64*G64)+(U64*$T$3))/M64 -> 0.3310329049 | X64: 1269.841126
A65: R | B65: Unnamed Drain Near Notus, ID | C65: 434335116510400 | D65: 12.33 | E65: 1.65 | F65: 0.14 | H65: 608.148 | I65: =I64+(F65*E65*$T$2) -> 1366.281497 | L65: =(D64-D65)*Unmeasured_Gains_Losses!$B$16 -> 1.068214804 | M65: =M64+E65+L65 -> 713.9071553 | N65: 0.25 | O65: 0.25 | P65: =F65 -> 0.14 | Q65: =((P65*E65)+(Q64*M64)+(L65*N65))/M65 -> 0.374024463 | R65: 1440.240341 | S65: =(F65*E65*$T$2) -> 1.24596318 | U65: =(D64-D65)*Unmeasured_Gains_Losses!$C$16 -> 21.99112213 | W65: =((W64*M64)+(F65*E65)+(U65*$T$3))/M65 -> 0.335807066 | X65: 1293.078211
A66: D | B66: Andrews Canal | D66: 11.09 | G66: 0.32 | H66: 608.148 | I66: =I65+(G66*E66*$T$2) -> 1366.281497 | L66: =(D65-D66)*Unmeasured_Gains_Losses!$B$16 -> 1.324586357 | M66: =M65+E66+L66 -> 715.2317417 | N66: 0.25 | O66: 0.25 | Q66: =((Q65*M65)+(E66*Q65)+(L66*N66))/M66 -> 0.3737947736 | R66: 1442.026473 | S66: =(G66*E66*$T$2) -> 0 | U66: =(D65-D66)*Unmeasured_Gains_Losses!$C$16 -> 27.26899144 | W66: =((W65*M65)+(E66*G66)+(U66*$T$3))/M66 -> 0.3422536914 | X66: 1320.347202
A67: R | B67: Unnamed Drain Near Dixie Drain near Notus, ID | C67: 434348116523600 | D67: 10.93 | E67: 0.99 | F67: 0.14 | H67: 609.138 | I67: =I66+(F67*E67*$T$2) -> 1367.029075 | L67: =(D66-D67)*Unmeasured_Gains_Losses!$B$16 -> 0.1709143687 | M67: 716.392656 | N67: 0.25 | O67: 0.25 | P67: =F67 -> 0.14 | Q67: =((P67*E67)+(Q66*M66)+(L67*N67))/M67 -> 0.3734421526 | R67: 1443.00452 | S67: =(F67*E67*$T$2) -> 0.747577908 | U67: =(D66-D67)*Unmeasured_Gains_Losses!$C$16 -> 3.518579541 | W67: =((W66*M66)+(F67*E67)+(U67*$T$3))/M67 -> 0.3428031289 | X67: 1324.61336
A68: R | B68: Dixie Drain near Wilder, ID | C68: 13212890 | D68: 10.53 | E68: 70.3 | F68: 0.1 | H68: 679.438 | I68: =I67+(F68*E68*$T$2) -> 1404.947348 | L68: =(D67-D68)*Unmeasured_Gains_Losses!$B$16 -> 0.4272859216 | M68: 787.1199419 | N68: 0.25 | O68: 0.25 | P68: =F68 -> 0.1 | Q68: =((P68*E68)+(Q67*M67)+(L68*N68))/M68 -> 0.3489532184 | R68: 1481.498965 | S68: =(F68*E68*$T$2) -> 37.9182734 | U68: =(D67-D68)*Unmeasured_Gains_Losses!$C$16 -> 8.796448853 | W68: =((W67*M67)+(F68*E68)+(U68*$T$3))/M68 -> 0.3230034979 | X68: 1371.328082
A69: D | B69: Mammon Pumps | D69: 10 | G69: 0.33 | H69: 679.438 | I69: =I68+(G69*E69*$T$2) -> 1404.947348 | L69: =(D68-D69)*Unmeasured_Gains_Losses!$B$16 -> 0.5661538462 | M69: =M68+E69+L69 -> 787.6860958 | N69: 0.25 | O69: 0.25 | Q69: =((Q68*M68)+(E69*Q68)+(L69*N69))/M69 -> 0.3488820952 | R69: 1482.262392 | S69: =(G69*E69*$T$2) -> 0 | U69: =(D68-D69)*Unmeasured_Gains_Losses!$C$16 -> 11.65529473 | W69: =((W68*M68)+(E69*G69)+(U69*$T$3))/M69 -> 0.3255146597 | X69: 1382.983377
A70: M | B70: Boise River at HWY 95 Crossing near Parma, ID | C70: 13212900 | D70: 8.77 | E70: 789 | F70: 0.33 | H70: =H69 -> 679.438 | I70: =I69 -> 1404.947348 | J70: 35.42 | K70: =E70-(E61+SUM(E62:E69)) -> 7.36 | L70: =(D69-D70)*Unmeasured_Gains_Losses!$B$16 -> 1.313904209 | M70: =M69+L70 -> 789 | N70: 0.25 | O70: 0.25 | Q70: =((Q69*M69)+(L70*N70))/M70 -> 0.3487174291 | R70: 1484.03412 | S70: =F70*M70*$T$2 -> 1404.378499 | T70: =S70-(S61+(SUM(S62:S69))) -> 151.5188315 | U70: =(D69-D70)*Unmeasured_Gains_Losses!$C$16 -> 27.04908022 | V70: =(T70/K70)*$T$3 -> 3.816766304 | W70: =((W69*M69)+(U70*$T$3))/M70 -> 0.3313285637 | X70: 1410.032457
A71: D | B71: Hass Canal | D71: 8.05 | G71: 0.33 | H71: =H70+E71 -> 679.438 | I71: =I70+(G71*E71*$T$2) -> 1404.947348 | L71: =(D70-D71)*Unmeasured_Gains_Losses!$B$17 -> 8.257545272 | M71: =M70+E71+L71 -> 797.2575453 | N71: 0.25 | O71: 0.25 | Q71: =((Q70*M70)+(E71*Q70)+(L71*N71))/M71 -> 0.3476949695 | R71: 1495.168965 | S71: =(G71*E71*$T$2) -> 0 | U71: =(D70-D71)*Unmeasured_Gains_Losses!$C$17 -> 21.30857828 | W71: =((W70*M70)+(E71*G71)+(U71*$T$3))/M71 -> 0.3328520649 | X71: 1431.341035
A72: D | B72: Parma Canal | D72: 7.47 | G72: 0.33 | H72: =H71+E72 -> 679.438 | I72: =I71+(G72*E72*$T$2) -> 1404.947348 | L72: =(D71-D72)*Unmeasured_Gains_Losses!$B$17 -> 6.651911469 | M72: 803.9094567 | N72: 0.25 | O72: 0.25 | Q72: =((Q71*M71)+(E72*Q71)+(L72*N72))/M72 -> 0.346886597 | R72: 1504.138702 | S72: =(G72*E72*$T$2) -> 0 | U72: =(D71-D72)*Unmeasured_Gains_Losses!$C$17 -> 17.16524361 | W72: =((W71*M71)+(E72*G72)+(U72*$T$3))/M72 -> 0.3340565688 | X72: 1448.506279
A73: D | B73: Island Highline Canal | D73: 6.33 | G73: 0.33 | H73: =H72+E73 -> 679.438 | I73: =I72+(G73*E73*$T$2) -> 1404.947348 | L73: =(D72-D73)*Unmeasured_Gains_Losses!$B$17 -> 13.07444668 | M73: 816.9839034 | N73: 0.25 | O73: 0.25 | Q73: =((Q72*M72)+(E73*Q72)+(L73*N73))/M73 -> 0.3453360907 | R73: =Q73*M73*$T$2 -> 1521.768874 | S73: =(G73*E73*$T$2) -> 0 | U73: =(D72-D73)*Unmeasured_Gains_Losses!$C$17 -> 33.73858227 | W73: =((W72*M72)+(E73*G73)+(U73*$T$3))/M73 -> 0.3363668784 | X73: =W73*M73*$T$2 -> 1482.244861
A74: D | B74: Crawforth Pumps | D74: 4.32 | G74: 0.33 | H74: =H73+E74 -> 679.438 | I74: =I73+(G74*E74*$T$2) -> 1404.947348 | L74: =(D73-D74)*Unmeasured_Gains_Losses!$B$17 -> 23.05231388 | M74: 840.0362173 | N74: 0.25 | O74: 0.25 | Q74: =((Q73*M73)+(E74*Q73)+(L74*N74))/M74 -> 0.3427198732 | R74: 1552.853652 | S74: =(G74*E74*$T$2) -> 0 | U74: =(D73-D74)*Unmeasured_Gains_Losses!$C$17 -> 59.48644769 | W74: =((W73*M73)+(E74*G74)+(U74*$T$3))/M74 -> 0.3402651358 | X74: 1541.731309
A75: D | B75: McConnel Island Canal | D75: 3.91 | G75: 0.33 | H75: =H74+E75 -> 679.438 | I75: =I74+(G75*E75*$T$2) -> 1404.947348 | L75: =(D74-D75)*Unmeasured_Gains_Losses!$B$17 -> 4.70221328 | M75: 844.7384306 | N75: 0.25 | O75: 0.25 | Q75: =((Q74*M74)+(E75*Q74)+(L75*N75))/M75 -> 0.3422037506 | R75: 1559.194328 | S75: =(G75*E75*$T$2) -> 0 | U75: =(D74-D75)*Unmeasured_Gains_Losses!$C$17 -> 12.13405152 | W75: =((W74*M74)+(E75*G75)+(U75*$T$3))/M75 -> 0.3410341769 | X75: 1553.86536
A76: M | B76: Boise River near Parma, ID | C76: 13213000 | D76: 3.8 | E76: 846 | F76: 0.34 | H76: =H75 -> 679.438 | I76: =I75 -> 1404.947348 | J76: 51.85 | K76: =E76-(E70+(SUM(E71:E75))) -> 57 | L76: =(D75-D76)*Unmeasured_Gains_Losses!$B$17 -> 1.261569416 | M76: =M75+L76 -> 846 | N76: 0.25 | O76: 0.25 | Q76: =((Q75*M75)+(L76*N76))/M76 -> 0.3420662548 | R76: 1560.895485 | S76: =F76*M76*$T$2 -> 1551.466879 | T76: =S76-(S70+(SUM(S71:S75))) -> 147.0883806 | U76: =(D75-D76)*Unmeasured_Gains_Losses!$C$17 -> 3.255477237 | V76: =(T76/K76)*$T$3 -> 0.4784210526 | W76: =((W75*M75)+(U76*$T$3))/M76 -> 0.3412390505 | X76: 1557.120838 | Y76: mean daily Q
M77: flow-weighted TP in GW gain: | N77: =(SUM(N76*L76,N75*L75,N74*L74,N73*L73,N72*L72,N71*L71,N70*L70,N69*L69,N68*L68,N67*L67,N66*L66,N65*L65,N64*L64,N63*L63,N62*L62,N61*L61,N60*L60,N59*L59,N58*L58,N57*L57,N56*L56,N55*L55,N54*L54,N53*L53,N52*L52,N51*L51,N50*L50,N49*L49,N48*L48,N47*L47,N46*L46,N45*L45,N44*L44,N43*L43,N42*L42,N41*L41,N40*L40,N37*L37,N36*L36,N35*L35,N34*L34,N23*L23,N22*L22,N21*L21,N20*L20,N19*L19,N18*L18,N17*L17,N16*L16,N15*L15,N14*L14,N13*L13,N12*L12,N11*L11,N10*L10))/(SUM(L40:L76,L34:L37,L10:L23)) -> 0.1975014931
A79: Sites Outside Modeling Reach
A80: R | B80: Sand Hollow Creek at Mouth near Parma, ID | C80: 13213080 | D80: NA | E80: 38.7 | F80: 0.129 | P80: Boise River near Parma + Sand Hollow Creek at Mouth | Q80: =((Q76*$E$76)+($E$80*$F$80))/($E$76+$E$80) -> 0.3327459608 | R80: =Q80*(E80+M76)*$T$2 -> 1587.822853 | W80: =((W76*$E$76)+($E$80*$F$80))/($E$76+$E$80) -> 0.3319549415 | X80: =W80*(E80+E76)*$T$2 -> 1584.048205
A81: SR | B81: Snake River near Adrian, OR | C81: 13173600 | D81: NA | E81: 7050 | F81: 0.07 | P81: Snake River NR Adrian | Q81: =F81 -> 0.07 | R81: =Q81*E81*$T$2 -> 2661.83043 | W81: 0.05 | X81: =W81*E81*$T$2 -> 1901.30745
F82: 0.09 | K82: =E83-E81-E80-E76 -> 75.3 | P82: Other Sources | Q82: =$F$83-Q83 -> -0.009295543819 | R82: =R83-R81-R80 -> 40.32904737 | W82: =$F$83-W83 -> -0.009207347062 | X82: =X83-X81-X80 -> 800.8162061
A83: SR | B83: Snake River at Nyssa, OR | C83: 13213100 | D83: NA | E83: 8010 | F83: 0.09 | P83: Snake River at Nyssa | Q83: =(($E$81*$F$81)+(Q80*($E$80+$E$76)))/($E$81+$E$80+$E$76) -> 0.09929554382 | R83: =Q83*E83*$T$2 -> 4289.98233 | W83: =(($E$81*$F$81)+(W80*($E$80+$E$76)))/($E$81+$E$80+$E$76) -> 0.09920734706 | X83: =W83*E83*$T$2 -> 4286.171862

Sheet North_Channel
D1: Equation No. In Report | J1: 1 | K1: 3 | L1: 4 | M1: 18 | N1: 5 | O1: 7 | P1: 14 | Q1: 9 | R1: 5
D2: Variable in Report | J2: Qgw | K2: Qgwi…n | L2: Qmi…n | M2: Cgw i…n | N2: ∆M | O2: ∆Mi…n | P2: Cp | Q2: Cm | R2: MUS, -MD, +MR
A3: Diversion, Return, or Main-stem | E3: Measured Discharge | F3: MeasuredTP | G3: Estimated Diversion TP | H3: Net SW Discharge | I3: Discharge Uncertainty Propogation of Errror | J3: Discharge Gain/Loss per Subreach | K3: GW Gain/Loss per RM | L3: Modeled Flow with GW | M3: Estimated GW TP Dial | N3: Load Gain/Loss per Subreach | O3: Load In/Out per RM | P3: TP | Q3: TP | R3: SW Load in/out
B4: Name | C4: Site ID | D4: RM | E4: ft3/s | F4: mg/L | G4: mg/L | H4: ft3/s | I4: ft3/s | J4: ft3/s | K4: ft3/s/mi | L4: ft3/s | M4: mg/L | N4: lbs/d | O4: lbs/d/mi | P4: mg/L | Q4: mg/L | R4: lbs/d | S4: Note
A5: D | B5: Loss to North Channel (Boise River North Channel near Eagle, ID) | C5: Computed | D5: 45.5 | E5: =E8+E6+E7 -> 71.6 | G5: 0.09 | H5: =E5 -> 71.6 | L5: =H5 -> 71.6 | M5: =March.4.2013_Model!N15 -> 0.03452883263 | P5: =March.4.2013_Model!P15 -> 0.1091705267 | Q5: =March.4.2013_Model!W15 -> 0.1407191324 | R5: =E5*G5*March.4.2013_Model!$T$2 -> 34.75751832 | S5: Computed from measured Q at RM 45.5 = 71.6 + Ballentyne + Mace Mace
A6: D | B6: Ballentyne Canal | D6: 44 | E6: 0 | G6: 0.09 | H6: =E6+E5 -> 71.6 | L6: =H6 -> 71.6 | M6: =March.4.2013_Model!N18 -> 0.04971870605 | P6: =((P5*L5)+(E6*P5))/L6 -> 0.1091705267 | Q6: =((G6*E6)+(Q5*L5)+(O6*March.4.2013_Model!$T$3))/L6 -> 0.1407191324 | R6: =E6*F6*March.4.2013_Model!$T$2 -> 0
A7: D | B7: Mace-Mace Canal | D7: 42.8 | E7: 0 | G7: 0.09 | H7: =H6+E7 -> 71.6 | L7: 71.6 | M7: =March.4.2013_Model!N23 -> 0.06502109705 | P7: =((P6*L6)+(E7*P6))/L7 -> 0.1091705267 | Q7: =((G7*E7)+(Q6*L6)+(O7*March.4.2013_Model!$T$3))/L7 -> 0.1407191324 | R7: =E7*F7*March.4.2013_Model!$T$2 -> 0
A8: M | B8: Boise River North Channel near Eagle, ID | C8: 13206300 | D8: 42.8 | E8: 71.6 | F8: 0.09 | H8: 71.6 | I8: 4.35 | J8: =H8-H7 -> 0 | K8: 0 | L8: =L7+K8 -> 71.6 | M8: =March.4.2013_Model!N23 -> 0.06502109705 | N8: 0 | O8: 0 | P8: =((P7*L7)+(K8*M8))/L8 -> 0.1091705267 | Q8: =((Q7*L7)+(O8*March.4.2013_Model!$T$3))/L8 -> 0.1407191324 | R8: =E8*F8*March.4.2013_Model!$T$2 -> 34.75751832 | S8: Instantaneous Q
A9: R | B9: Eagle Drain at Eagle, ID | C9: 13206400 | D9: 42.7 | E9: 6.1 | F9: 0.09 | H9: =H8+E9 -> 77.7 | K9: =(D8-D9)*Unmeasured_Gains_Losses!$B$19 -> 0.77 | L9: =L8+K9+E9 -> 78.47 | M9: =March.4.2013_Model!N24 -> 0.06614627286 | O9: =(D8-D9)*Unmeasured_Gains_Losses!$C$18 -> 0 | P9: =((P8*L8)+(E9*F9)+(K9*M9))/L9 -> 0.1072580902 | Q9: =((E9*F9)+(Q8*L8)+(O9*March.4.2013_Model!$T$3))/L9 -> 0.1353955637 | R9: =E9*F9*March.4.2013_Model!$T$2 -> 2.96118522 | S9: Mean daily Q
A10: R | B10: Dry Creek at Eagle, ID | C10: 13208000 | D10: 42.5 | E10: 0 | F10: 0 | H10: =H9+E10 -> 77.7 | K10: =(D9-D10)*Unmeasured_Gains_Losses!$B$19 -> 1.54 | L10: =L9+K10+E10 -> 80.01 | M10: =March.4.2013_Model!N25 -> 0.06952180028 | O10: =(D9-D10)*Unmeasured_Gains_Losses!$C$18 -> 0 | P10: =((P9*L9)+(E10*F10)+(K10*M10))/L10 -> 0.1065317574 | Q10: =((E10*F10)+(Q9*L9)+(O10*March.4.2013_Model!$T$3))/L10 -> 0.1327895248 | R10: =E10*F10*March.4.2013_Model!$T$2 -> 0 | S10: Instantaneous Q
A11: D | B11: Hart-Davis Canal | D11: 42.1 | E11: 0 | G11: 0.08 | H11: =H10+E11 -> 77.7 | K11: =(D10-D11)*Unmeasured_Gains_Losses!$B$19 -> 3.08 | L11: 83.09 | M11: =March.4.2013_Model!N26 -> 0.07379746835 | O11: =(D10-D11)*Unmeasured_Gains_Losses!$C$18 -> 0 | P11: =((P10*L10)+(E11*F11)+(K11*M11))/L11 -> 0.105318355 | Q11: =((G11*E11)+(Q10*L10)+(O11*March.4.2013_Model!$T$3))/L11 -> 0.127867251 | R11: =F11*E11 -> 0
A12: M | B12: Boise River (North Channel) above Middleton Canal, ID | C12: 13208600 | D12: 41.8 | E12: 85.4 | F12: 0.08 | H12: =H11 -> 77.7 | I12: 7.02 | J12: =E12-(SUM(E8:E11)) -> 7.7 | K12: =(D11-D12)*Unmeasured_Gains_Losses!$B$19 -> 2.31 | L12: =L11+K12 -> 85.4 | M12: =March.4.2013_Model!N28 -> 0.0764978903 | N12: =R12-(SUM(R8:R11)) -> -0.86839858 | O12: =(D11-D12)*Unmeasured_Gains_Losses!$C$18 -> 0 | P12: =((P11*L11)+(K12*M12))/L12 -> 0.104538785 | Q12: =((Q11*L11)+(O12*March.4.2013_Model!$T$3))/L12 -> 0.1244085466 | R12: =E12*F12*March.4.2013_Model!$T$2 -> 36.85030496 | S12: Instantaneous Q
A13: D | B13: Middleton Canal | D13: 41.5 | E13: 0 | G13: 0.08 | H13: =H12+E13 -> 77.7 | L13: =K13+L12+E13 -> 85.4 | M13: =March.4.2013_Model!N29 -> 0.08066104079 | P13: =((P12*L12)+(E13*P12)+(K13*M13))/L13 -> 0.104538785 | Q13: =((G13*E13)+(Q12*L12)+(O13*March.4.2013_Model!$T$3))/L13 -> 0.1244085466 | R13: =E13*G13*March.4.2013_Model!$T$2 -> 0
A14: D | B14: Eagle Island Park | D14: 41.4 | E14: 0 | G14: 0.08 | H14: =H13+E14 -> 77.7 | L14: =K14+L13+E14 -> 85.4 | M14: =March.4.2013_Model!N29 -> 0.08066104079 | P14: =((P13*L13)+(E14*P13)+(K14*M14))/L14 -> 0.104538785 | Q14: =((G14*E14)+(Q13*L13)+(O14*March.4.2013_Model!$T$3))/L14 -> 0.1244085466 | R14: =E14*G14*March.4.2013_Model!$T$2 -> 0
A15: D | B15: Little Pioneer Canal | D15: 41.2 | E15: 0 | G15: 0.08 | H15: =H14+E15 -> 77.7 | L15: =K15+L14+E15 -> 85.4 | M15: =March.4.2013_Model!N29 -> 0.08066104079 | P15: =((P14*L14)+(E15*P14)+(K15*M15))/L15 -> 0.104538785 | Q15: =((G15*E15)+(Q14*L14)+(O15*March.4.2013_Model!$T$3))/L15 -> 0.1244085466 | R15: =E15*G15*March.4.2013_Model!$T$2 -> 0
A16: R | B16: GAIN FROM North Channel | C16: Computed | D16: 40.2 | E16: =L16 -> 85.4 | G16: 0.08 | L16: =L15+K16 -> 85.4 | M16: =March.4.2013_Model!N30 -> 0.09427566807 | N16: =R16-(SUM(R12:R15)) -> 0 | O16: 0 | P16: =((P15*L15)+(K16*M16))/L16 -> 0.104538785 | Q16: =((Q15*L15)+(E15*G15)+(O16*March.4.2013_Model!$T$3))/L16 -> 0.1244085466 | R16: =G16*E16*March.4.2013_Model!T2 -> 36.85030496 | S16: Computed Q

Sheet Unmeasured_Gains_Losses
B1: Unaccounted-for Gains and Losses in Discharge and Mass
A2: Equation No. In Report | B2: 2 | C2: 6 | F2: 1 | G2: 5
A3: Variable in Report | B3: QgwRM | C3: ∆MRM | F3: Qgw | G3: ∆M
B4: Discharge Gain/Loss Per River Mile | C4: Load Gain/Loss Per River Mile | D4: Beginning Reach (RM) | E4: End Reach (RM) | F4: Discharge Gain / Loss over Reach | G4: Load Gain/Loss over Reach
B5: ft3/s | C5: lbs/d | D5: mi | E5: mi | F5: ft3/s | G5: lbs/d
B6: =F6/(D6-E6) -> 8.671535581 | C6: =G6/(D6-E6) -> -11.72567369 | D6: 50.17 | E6: 47.5 | F6: =March.4.2013_Model!K13 -> 23.153 | G6: =March.4.2013_Model!T13 -> -31.30754876
B7: 3.404255319 | C7: 38.78242581 | D7: 47.5 | E7: 42.8 | F7: =March.4.2013_Model!K23 -> 16 | G7: =March.4.2013_Model!T23 -> 182.2774013
B8: -3.401960784 | C8: -72.02134641 | D8: 42.8 | E8: 41.78 | F8: =March.4.2013_Model!K28 -> -3.47 | G8: =March.4.2013_Model!T28 -> -73.46177334
B9: -4.882629108 | C9: -149.1823321 | D9: 41.78 | E9: 39.65 | F9: =March.4.2013_Model!K31 -> -10.4 | G9: =March.4.2013_Model!T31 -> -317.7583674
B10: -2.612307692 | C10: 33.3255942 | D10: 39.65 | E10: 36.4 | F10: =March.4.2013_Model!K33 -> -8.49 | G10: =March.4.2013_Model!T33 -> 108.3081812
B11: 5.030181087 | C11: 27.41603025 | D11: 36.4 | E11: 31.43 | F11: =March.4.2013_Model!K37 -> 25 | G11: =March.4.2013_Model!T37 -> 136.2576704
B12: -3.938223938 | C12: -19.69458589 | D12: 31.43 | E12: 28.84 | F12: =March.4.2013_Model!K39 -> -10.2 | G12: =March.4.2013_Model!T39 -> -51.00897746
B13: 7.393719807 | C13: -10.17716617 | D13: 28.84 | E13: =March.4.2013_Model!D45 -> 24.7 | F13: =March.4.2013_Model!K45 -> 30.61 | G13: =March.4.2013_Model!T45 -> -42.13346793
B14: 0.6113149847 | C14: 90.83905349 | D14: 24.7 | E14: 21.43 | F14: =March.4.2013_Model!K54 -> 1.999 | G14: =March.4.2013_Model!T54 -> 297.0437049
B15: 6.585788562 | C15: -62.44445477 | D15: 21.43 | E15: 15.66 | F15: =March.4.2013_Model!K61 -> 38 | G15: =March.4.2013_Model!T61 -> -360.304504
B16: 1.068214804 | C16: 21.99112213 | D16: 15.66 | E16: 8.77 | F16: =March.4.2013_Model!K70 -> 7.36 | G16: =March.4.2013_Model!T70 -> 151.5188315
B17: 11.46881288 | C17: 29.59524761 | D17: 8.77 | E17: 3.8 | F17: =March.4.2013_Model!K76 -> 57 | G17: =March.4.2013_Model!T76 -> 147.0883806
A18: Begin North Channel | B18: =F18/(D18-E18) -> 0 | C18: =G18/(D18-E18) -> 0 | D18: 45.5 | E18: 41.8 | F18: =North_Channel!J8 -> 0 | G18: =North_Channel!N8 -> 0
B19: =F19/(D19-E19) -> 7.7 | C19: =G19/(D19-E19) -> -0.86839858 | D19: 42.8 | E19: 41.8 | F19: =North_Channel!J12 -> 7.7 | G19: =North_Channel!N12 -> -0.86839858

Sheet Measured_Main_Stem_Data
A1: RM | B1: Discharge | C1: Measured TP | D1: Measured Load | E1: Mm TP | F1: 1:1 Line | G1: Cp TP | H1: Cm TP
A2: mile | B2: cfs | C2: mg/L | D2: lbs/d | E2: lbs/d | F2: mg/L | G2: mg/L | H2: mg/L
A3: 61.1 | B3: =March.4.2013_Model!E9 -> 249 | C3: =March.4.2013_Model!F9 -> 0.02 | D3: =C3*B3*March.4.2013_Model!$T$2 -> 26.8610244 | F3: =C3 -> 0.02
A4: 50.17 | B4: =March.4.2013_Model!E10 -> 243 | C4: =March.4.2013_Model!F10 -> 0.01 | D4: =C4*B4*March.4.2013_Model!$T$2 -> 13.1068854 | E4: =March.4.2013_Model!X10 -> 13.1068854 | F4: 0.01 | G4: =March.4.2013_Model!Q10 -> 0.01 | H4: =March.4.2013_Model!W10 -> 0.01
A5: 47.5 | B5: =March.4.2013_Model!E13 -> 285 | C5: =March.4.2013_Model!F13 -> 0.09 | D5: =C5*B5*March.4.2013_Model!$T$2 -> 138.350457 | E5: =March.4.2013_Model!X13 -> 138.350457 | F5: 0.09 | G5: =March.4.2013_Model!Q13 -> 0.1111909904 | H5: =March.4.2013_Model!W13 -> 0.09
A6: 42.8 | B6: =March.4.2013_Model!E23 -> 252 | C6: =March.4.2013_Model!F23 -> 0.623 | D6: =C6*B6*March.4.2013_Model!$T$2 -> 846.8018849 | E6: =March.4.2013_Model!X23 -> 852.4558432 | F6: 0.623 | G6: =March.4.2013_Model!Q23 -> 0.5241986535 | H6: =March.4.2013_Model!W23 -> 0.6271596696
A7: 41.78 | B7: =March.4.2013_Model!E28 -> 252 | C7: =March.4.2013_Model!F28 -> 0.57 | D7: =C7*B7*March.4.2013_Model!$T$2 -> 774.7625592 | E7: =March.4.2013_Model!X28 -> 780.4165175 | F7: 0.57 | G7: =March.4.2013_Model!Q28 -> 0.5180361803 | H7: =March.4.2013_Model!W28 -> 0.5741596696
A8: 39.65 | B8: =March.4.2013_Model!E31 -> 327 | C8: =March.4.2013_Model!F31 -> 0.28 | D8: =C8*B8*March.4.2013_Model!$T$2 -> 493.8544968 | E8: =March.4.2013_Model!X31 -> 499.5084551 | F8: 0.28 | G8: =March.4.2013_Model!Q31 -> 0.4109259697 | H8: =March.4.2013_Model!W31 -> 0.2832056169
A9: 36.4 | B9: =March.4.2013_Model!E33 -> 319 | C9: =March.4.2013_Model!F33 -> 0.35 | D9: =C9*B9*March.4.2013_Model!$T$2 -> 602.215537 | E9: =March.4.2013_Model!X33 -> 607.8694953 | F9: 0.35 | G9: =March.4.2013_Model!Q33 -> 0.4103266167 | H9: =March.4.2013_Model!W33 -> 0.3532860086
A10: 31.43 | B10: =March.4.2013_Model!E37 -> 344 | C10: =March.4.2013_Model!F37 -> 0.398 | D10: =C10*B10*March.4.2013_Model!$T$2 -> 738.4732074 | E10: =March.4.2013_Model!X37 -> 744.1271657 | F10: 0.398 | G10: =March.4.2013_Model!Q37 -> 0.3940491413 | H10: =March.4.2013_Model!W37 -> 0.4010471998
A11: 28.84 | B11: =March.4.2013_Model!E39 -> 351 | C11: =March.4.2013_Model!F39 -> 0.369 | D11: =C11*B11*March.4.2013_Model!$T$2 -> 698.5969918 | E11: =March.4.2013_Model!X39 -> 704.2509501 | F11: 0.369 | G11: =March.4.2013_Model!Q39 -> 0.3808378519 | H11: =March.4.2013_Model!W39 -> 0.3719864294
A12: 24.7 | B12: =March.4.2013_Model!E45 -> 471 | C12: =March.4.2013_Model!F45 -> 0.3 | D12: =C12*B12*March.4.2013_Model!$T$2 -> 762.141114 | E12: =March.4.2013_Model!X45 -> 772.3512428 | F12: 0.3 | G12: =March.4.2013_Model!Q45 -> 0.3434307117 | H12: =March.4.2013_Model!W45 -> 0.3022123301
A13: 21.43 | B13: =March.4.2013_Model!E54 -> 658 | C13: =March.4.2013_Model!F54 -> 0.44 | D13: =C13*B13*March.4.2013_Model!$T$2 -> 1561.607186 | E13: =March.4.2013_Model!X54 -> 1567.261144 | F13: 0.44 | G13: =March.4.2013_Model!Q54 -> 0.3863821452 | H13: =March.4.2013_Model!W54 -> 0.4415930649
A14: 15.66 | B14: =March.4.2013_Model!E61 -> 696 | C14: =March.4.2013_Model!F61 -> 0.32 | D14: =C14*B14*March.4.2013_Model!$T$2 -> 1201.302682 | E14: =March.4.2013_Model!X61 -> 1206.95664 | F14: 0.32 | G14: =March.4.2013_Model!Q61 -> 0.3789359936 | H14: =March.4.2013_Model!W61 -> 0.3215060873
A15: 8.77 | B15: =March.4.2013_Model!E70 -> 789 | C15: =March.4.2013_Model!F70 -> 0.33 | D15: =C15*B15*March.4.2013_Model!$T$2 -> 1404.378499 | E15: =March.4.2013_Model!X70 -> 1410.032457 | F15: 0.33 | G15: =March.4.2013_Model!Q70 -> 0.3487174291 | H15: =March.4.2013_Model!W70 -> 0.3313285637
A16: 3.8 | B16: =March.4.2013_Model!E76 -> 846 | C16: =March.4.2013_Model!F76 -> 0.34 | D16: =C16*B16*March.4.2013_Model!$T$2 -> 1551.466879 | E16: =March.4.2013_Model!X76 -> 1557.120838 | F16: =C16 -> 0.34 | G16: =March.4.2013_Model!Q76 -> 0.3420662548 | H16: =March.4.2013_Model!W76 -> 0.3412390505
C17: 0.7 | F17: 0.7
C18: 0 | F18: =C18 -> 0

Sheet Major_inflows
B1: x | C1: y | D1: y2 | E1: y3
B2: RM | C2: TP range | D2: TP load Range | E2: Q range
A3: Inflow | B3: mile | C3: mg/L | D3: lbs/d | E3: ft3/s
A4: Lander WWTP | B4: 50.01 | C4: 0 | D4: 0 | E4: 0
B5: 50.01 | C5: 0.6 | D5: 1600 | E5: 4000
A6: West Boise WWTP | B6: 44.16 | C6: 0 | D6: 0 | E6: 0
A7: West Boise WWTP | B7: 44.16 | C7: 0.6 | D7: 1600 | E7: 4000
A8: 15mile | B8: 30.31 | C8: 0 | D8: 0 | E8: 0
B9: 30.31 | C9: 0.6 | D9: 1600 | E9: 4000
A10: Mason | B10: 24.95 | C10: 0 | D10: 0 | E10: 0
B11: 24.95 | C11: 0.6 | D11: 1600 | E11: 4000
A12: Caldwell WWTP | B12: 22.55 | C12: 0 | D12: 0 | E12: 0
B13: 22.55 | C13: 0.6 | D13: 1600 | E13: 4000
A14: Indian | B14: 22.44 | C14: 0 | D14: 0 | E14: 0
B15: 22.44 | C15: 0.6 | D15: 1600 | E15: 4000
A16: Dixie | B16: 10.53 | C16: 0 | D16: 0 | E16: 0
B17: 10.53 | C17: 0.6 | D17: 1600 | E17: 4000
A18: North and South Channel Start | B18: 45.51 | C18: 0 | D18: 0 | E18: 0
B19: 45.51 | C19: 0.6 | D19: 1600 | E19: 4000
A20: North and South Channel Start | B20: 40.2 | C20: 0 | D20: 0 | E20: 0
B21: 40.2 | C21: 0.6 | D21: 1600 | E21: 4000
A22: TP target | B22: 70 | C22: 0.07
B23: 0 | C23: 0.07
